bitfinex-derivatives/quotes_BTCF0:USTF0_20251204
["timestamp","ask_amount","ask_price","bid_price","bid_amount"]
[1764828607211,0.12692,93020.0,93019.0,0.07637127]
[1764828608416,0.12692,93020.0,93019.0,0.03943127]
[1764828608619,0.12692,93020.0,93019.0,0.00316127]
[1764828609711,0.12692,93020.0,93019.0,0.07637127]
[1764828609712,0.10448,93020.0,93019.0,0.07637127]
[1764828610612,0.03,93020.0,93019.0,0.20637127]
[1764828610813,0.03,93020.0,93019.0,0.44637127]
[1764828614012,0.0159281,93020.0,93019.0,0.44637127]
[1764828615811,0.09692,93042.0,93041.0,0.07321]
[1764828616011,0.12692,93042.0,93041.0,0.07321]
[1764828616609,0.10448,93042.0,93041.0,0.083957]
[1764828617518,0.11248,93042.0,93041.0,0.083957]
[1764828617819,0.11548,93042.0,93041.0,0.083957]
[1764828620431,0.041,93042.0,93041.0,0.233957]
[1764828620723,0.07786,93042.0,93041.0,0.233957]
[1764828622026,0.11548,93042.0,93041.0,0.223957]
[1764828622222,0.11548,93042.0,93041.0,0.433957]
[1764828623628,0.07786,93042.0,93041.0,0.433957]
[1764828624136,0.011,93042.0,93041.0,0.433957]
[1764828624927,0.003,93042.0,93041.0,0.433957]
[1764828625227,0.00026869,93046.0,93045.0,0.0839566]
[1764828625412,0.03026869,93046.0,93045.0,0.4439566]
[1764828625617,0.03026869,93046.0,93045.0,1.9439566]
[1764828626523,0.03026869,93046.0,93045.0,2.04055359]
[1764828626727,0.03026869,93046.0,93045.0,1.9439566]
[1764828627221,0.03126869,93046.0,93045.0,2.04028188]
[1764828627525,0.03226869,93046.0,93045.0,1.9439566]
[1764828627824,0.10674869,93046.0,93045.0,1.76438711]
[1764828628123,0.10674869,93046.0,93045.0,1.81806268]
[1764828628323,0.10674869,93046.0,93045.0,1.66806268]
[1764828629224,0.10674869,93046.0,93045.0,1.81806268]
[1764828630225,0.06912869,93046.0,93045.0,1.81806268]
[1764828630520,0.03226869,93046.0,93045.0,2.13806268]
[1764828630720,0.00226869,93046.0,93045.0,2.13806268]
[1764828630919,0.00126869,93046.0,93045.0,2.13806268]
[1764828631120,0.07448,93075.0,93074.0,0.0839531]
[1764828631323,0.10448,93075.0,93074.0,0.07321]
[1764828631522,0.10448,93075.0,93074.0,0.03627]
[1764828632222,0.10448,93075.0,93074.0,0.05162169]
[1764828633124,0.10448,93075.0,93074.0,0.05262169]
[1764828633429,0.12248,93075.0,93074.0,0.05262169]
[1764828633625,0.12248,93075.0,93074.0,0.05162169]
[1764828633825,0.11948,93075.0,93074.0,0.05162169]
[1764828634025,0.11948,93075.0,93074.0,0.08856169]
[1764828634621,0.11948,93075.0,93074.0,0.05162169]
[1764828634817,0.11948,93075.0,93074.0,0.01535169]
[1764828635117,0.07327,93073.0,93072.0,0.0107435]
[1764828635322,0.10327,93073.0,93072.0,0.0107435]
[1764828636127,0.10327,93073.0,93072.0,0.0852135]
[1764828636332,0.10627,93073.0,93072.0,0.0852135]
[1764828636532,0.11727,93073.0,93072.0,0.0852135]
[1764828636831,0.11727,93073.0,93072.0,0.06375133]
[1764828637834,0.11727,93073.0,93072.0,0.02560133]
[1764828638034,0.11727,93073.0,93072.0,0.01485783]
[1764828638234,0.07327,93069.0,93068.0,0.0107439]
[1764828638435,0.10327,93069.0,93068.0,0.02586289]
[1764828639439,0.10627,93069.0,93068.0,0.06401289]
[1764828639641,0.11527,93069.0,93068.0,0.06401289]
[1764828640542,0.11527,93069.0,93068.0,0.10033289]
[1764828640728,0.08058,93069.0,93068.0,0.10033289]
[1764828640934,0.042,93069.0,93068.0,0.10033289]
[1764828641639,0.039,93069.0,93068.0,0.10033289]
[1764828641834,0.10935,93069.0,93068.0,0.10033289]
[1764828642340,0.07291,93069.0,93068.0,0.10033289]
[1764828642541,0.032,93069.0,93068.0,0.10033289]
[1764828643925,0.10135,93069.0,93068.0,0.10033289]
[1764828647040,0.10135,93069.0,93068.0,0.24033289]
[1764828647041,0.032,93069.0,93068.0,0.24033289]
[1764828647342,0.032,93069.0,93068.0,0.10033289]
[1764828647839,0.032,93069.0,93068.0,0.39033289]
[1764828648039,0.10135,93069.0,93068.0,0.10033289]
[1764828655144,0.10035,93069.0,93068.0,0.10033289]
[1764828655345,0.09935,93069.0,93068.0,0.10033289]
[1764828655549,0.09935,93069.0,93068.0,0.10133289]
[1764828661356,0.09935,93069.0,93068.0,0.15133289]
[1764828661541,0.09935,93069.0,93068.0,0.24759489]
[1764828662455,0.09935,93069.0,93068.0,0.19759489]
[1764828662647,0.09935,93069.0,93068.0,0.24759489]
[1764828663242,0.09935,93069.0,93068.0,0.19759489]
[1764828665260,0.09935,93069.0,93068.0,0.10133289]
[1764828666750,0.09935,93069.0,93068.0,0.26133289]
[1764828667761,0.09935,93069.0,93068.0,0.10133289]
[1764828673243,0.09935,93069.0,93068.0,0.25133289]
[1764828673957,0.09935,93069.0,93068.0,0.10133289]
[1764828674962,0.09935,93069.0,93068.0,0.26133289]
[1764828675560,0.09935,93069.0,93068.0,0.49133289]
[1764828677567,0.09935,93069.0,93068.0,0.50631289]
[1764828680164,0.09935,93069.0,93068.0,0.10133289]
[1764828680361,0.09935,93069.0,93068.0,0.46624289]
[1764828680668,0.09935,93069.0,93068.0,0.16624289]
[1764828681370,0.09935,93069.0,93068.0,0.51624289]
[1764828685869,0.09805,93069.0,93068.0,0.51624289]
[1764828688271,0.06605,93069.0,93068.0,0.51624289]
[1764828688564,0.03,93069.0,93068.0,0.51624289]
[1764828689171,0.06605,93069.0,93068.0,0.51624289]
[1764828692673,0.03,93069.0,93068.0,0.51624289]
[1764828694979,0.03,93069.0,93068.0,1.01476289]
[1764828696564,0.03,93069.0,93068.0,0.51624289]
[1764828696766,0.03,93069.0,93068.0,1.01476289]
[1764828696966,0.03,93069.0,93068.0,0.51624289]
[1764828697264,0.03,93069.0,93068.0,1.01476289]
[1764828697666,0.03,93069.0,93068.0,1.01472289]
[1764828699270,0.03,93069.0,93068.0,1.15003983]
[1764828700085,0.03,93069.0,93068.0,0.65155983]
[1764828700266,0.03016857,93086.0,93085.0,0.068122]
[1764828700467,0.00026857,93086.0,93085.0,1.046602]
[1764828700668,0.08781857,93086.0,93085.0,0.068122]
[1764828700972,0.05755,93078.0,93077.0,0.13531694]
[1764828701177,0.08755,93078.0,93077.0,0.13531694]
[1764828701384,0.08755,93078.0,93068.0,0.01611899]
[1764828701385,0.0682936,93071.0,93070.0,0.09662817]
[1764828701678,0.0682938,93069.0,93068.0,0.01511899]
[1764828701877,0.0682941,93066.0,93050.0,0.13531694]
[1764828702076,0.05755,93053.0,93052.0,0.05738]
[1764828702377,0.08755,93053.0,93052.0,0.0681258]
[1764828702564,0.08755,93053.0,93052.0,0.08430054]
[1764828703763,0.08755,93053.0,93052.0,0.08530054]
[1764828703967,0.08755,93053.0,93052.0,0.08930054]
[1764828706178,0.08755,93053.0,93052.0,0.02117474]
[1764828707977,0.08755,93053.0,93043.0,0.00016116]
[1764828707978,0.05755,93044.0,93043.0,0.00016116]
[1764828708175,0.08755,93044.0,93043.0,0.00016116]
[1764828708382,0.08755,93044.0,93043.0,0.01487931]
[1764828709084,0.08755,93044.0,93043.0,0.01687931]
[1764828709577,0.08755,93044.0,93020.0,0.15255694]
[1764828709578,0.05755,93021.0,93020.0,0.20993694]
[1764828709780,0.08755,93021.0,93020.0,0.0681295]
[1764828709984,0.08755,93021.0,93020.0,0.08301674]
[1764828710379,0.05,93031.0,93020.0,0.08301674]
[1764828710380,0.05755,93031.0,93030.0,0.04507]
[1764828710682,0.08755,93031.0,93030.0,0.07462]
[1764828710883,0.08755,93031.0,93030.0,0.0853683]
[1764828711678,0.08755,93031.0,93030.0,0.0681283]
[1764828712780,0.08755,93031.0,93030.0,0.0741283]
[1764828713280,0.0599,93031.0,93030.0,0.0913683]
[1764828713487,0.05771125,93040.0,93039.0,0.0681273]
[1764828713784,0.08771125,93040.0,93039.0,0.0681273]
[1764828714198,0.06481,93036.0,93035.0,0.0107477]
[1764828714372,0.06481,93036.0,93030.0,0.006]
[1764828714373,0.05755,93031.0,93030.0,0.006]
[1764828714572,0.08755,93031.0,93030.0,0.006]
[1764828715687,0.07437,93030.0,93029.0,0.0107483]
[1764828715888,0.10437,93030.0,93029.0,0.0107483]
[1764828717087,0.1151183,93030.0,93029.0,0.0157483]
[1764828717287,0.1151183,93030.0,93029.0,0.0167483]
[1764828717587,0.10437,93030.0,93029.0,0.0167483]
[1764828718178,0.08755,93030.0,93029.0,0.0741283]
[1764828723691,0.10853,93030.0,93029.0,0.006]
[1764828723894,0.10853,93030.0,93029.0,0.03472]
[1764828724285,0.03,93030.0,93029.0,0.06917]
[1764828724489,0.11285125,93040.0,93039.0,0.0739173]
[1764828724694,0.09285125,93040.0,93039.0,0.0739173]
[1764828725380,0.10359845,93040.0,93039.0,0.0739173]
[1764828725581,0.10359845,93040.0,93039.0,0.003]
[1764828726298,0.10359845,93040.0,93039.0,0.004]
[1764828732503,0.10359845,93040.0,93039.0,0.06717]
[1764828734501,0.09285125,93040.0,93039.0,0.06717]
[1764828735104,0.03016125,93040.0,93039.0,0.06717]
[1764828736717,0.03016125,93040.0,93039.0,0.19717]
[1764828736912,0.09285125,93040.0,93039.0,0.06717]
[1764828737507,0.03016125,93040.0,93039.0,0.06717]
[1764828738517,0.03016125,93040.0,93039.0,0.21717]
[1764828738923,0.00016125,93040.0,93039.0,0.21717]
[1764828740220,0.03016125,93040.0,93039.0,0.21717]
[1764828742230,0.03016125,93040.0,93039.0,0.42717]
[1764828743522,0.03016125,93040.0,93039.0,0.11717]
[1764828743716,0.03016125,93040.0,93039.0,0.45717]
[1764828748321,0.03016125,93040.0,93039.0,0.11717]
[1764828752827,0.03016125,93040.0,93039.0,0.47717]
[1764828753331,0.03016125,93040.0,93039.0,0.11717]
[1764828755535,0.06518125,93040.0,93039.0,0.11717]
[1764828757036,0.06518125,93040.0,93039.0,0.45717]
[1764828757237,0.03016125,93040.0,93039.0,0.45717]
[1764828762834,0.03016125,93040.0,93039.0,0.06717]
[1764828763031,0.03016125,93040.0,93039.0,0.11717]
[1764828763733,0.09550125,93040.0,93039.0,0.20248694]
[1764828763938,0.09550125,93040.0,93039.0,0.06717]
[1764828764139,0.09550125,93040.0,93039.0,0.03272]
[1764828764140,0.10559125,93040.0,93039.0,0.03272]
[1764828764333,0.10559125,93040.0,93039.0,0.004]
[1764828767346,0.10559125,93040.0,93039.0,0.1006721]
[1764828769435,0.09550125,93040.0,93039.0,0.1582821]
[1764828770345,0.09550125,93040.0,93039.0,0.06161]
[1764828773043,0.09550125,93040.0,93039.0,0.1582821]
[1764828773636,0.03016125,93040.0,93039.0,0.06161]
[1764828774238,0.06070125,93040.0,93039.0,0.06161]
[1764828774549,0.03016125,93040.0,93039.0,0.06161]
[1764828775349,0.03016125,93040.0,93039.0,0.22161]
[1764828776453,0.03016125,93040.0,93039.0,0.06161]
[1764828776848,0.03016125,93040.0,93039.0,0.20161]
[1764828777354,0.06070125,93040.0,93039.0,0.20161]
[1764828777556,0.06070125,93040.0,93039.0,0.06161]
[1764828777753,0.03016125,93040.0,93039.0,0.06161]
[1764828780757,0.06070125,93040.0,93039.0,0.06161]
[1764828781254,0.03016125,93040.0,93039.0,0.06161]
[1764828781550,0.06070125,93040.0,93039.0,0.06161]
[1764828782658,0.09102125,93040.0,93039.0,0.06161]
[1764828791655,0.03016125,93040.0,93039.0,0.21161]
[1764828792055,0.05877125,93040.0,93039.0,0.21161]
[1764828792766,0.08766125,93040.0,93039.0,0.21161]
[1764828793461,0.04016125,93040.0,93039.0,0.53161]
[1764828793667,0.00016125,93040.0,93039.0,0.53161]
[1764828815676,0.00016125,93040.0,93039.0,0.54798]
[1764828824681,0.00016125,93040.0,93039.0,1.0465]
[1764828825687,0.02915,93043.0,93042.0,0.07508]
[1764828825987,0.07428,93060.0,93059.0,0.02979]
[1764828826288,0.10428,93060.0,93059.0,0.13724081]
[1764828826584,0.10428,93060.0,93059.0,0.10745081]
[1764828827379,0.10628,93060.0,93059.0,0.10745081]
[1764828827778,0.10628,93060.0,93059.0,0.09670581]
[1764828828091,0.07428,93057.0,93056.0,0.09670581]
[1764828828292,0.10428,93057.0,93056.0,0.09670581]
[1764828829787,0.0579,93056.0,93055.0,0.0107454]
[1764828829986,0.0879,93056.0,93055.0,0.0107454]
[1764828831282,0.0889,93056.0,93055.0,0.0107454]
[1764828831484,0.0889,93056.0,93055.0,0.0117454]
[1764828836196,0.0889,93056.0,93055.0,0.0692554]
[1764828836387,0.0889,93056.0,93055.0,0.0117454]
[1764828841702,0.0889,93056.0,93055.0,0.001]
[1764828851403,0.0889,93056.0,93055.0,0.05703]
[1764828874523,0.0889,93056.0,93055.0,0.001]
[1764828877830,0.0889,93056.0,93055.0,0.05679]
[1764828891336,0.06015,93056.0,93055.0,0.05679]
[1764828891636,0.08842,93056.0,93055.0,0.05679]
[1764828900243,0.06015,93056.0,93055.0,0.38679]
[1764828900443,0.001,93056.0,93055.0,0.38679]
[1764828900636,0.02937102,93069.0,93068.0,0.0686839]
[1764828900836,0.03313719,93069.0,93068.0,0.0686839]
[1764828901037,0.06140719,93069.0,93068.0,0.0686839]
[1764828901948,0.06240719,93069.0,93068.0,0.0686839]
[1764828903042,0.06640719,93069.0,93068.0,0.0686839]
[1764828904147,0.06640719,93069.0,93068.0,0.16526704]
[1764828904642,0.03813719,93069.0,93068.0,0.16526704]
[1764828905151,0.09116,93069.0,93068.0,0.0686839]
[1764828906434,0.09116,93069.0,93068.0,0.05794]
[1764828906641,0.09116,93069.0,93068.0,0.15449665]
[1764828907534,0.0816239,93068.0,93067.0,0.09655665]
[1764828907740,0.0816239,93068.0,93064.0,0.09655665]
[1764828907741,0.0669043,93065.0,93064.0,0.09655665]
[1764828907937,0.066905,93059.0,93058.0,0.16679165]
[1764828908250,0.096905,93059.0,93058.0,0.13725175]
[1764828908745,0.096905,93059.0,93058.0,0.16679175]
[1764828909152,0.08616,93059.0,93058.0,0.16679175]
[1764828909850,0.08716,93059.0,93058.0,0.16679175]
[1764828912555,0.08716,93059.0,93058.0,0.15604665]
[1764828912750,0.08716,93059.0,93058.0,0.16679175]
[1764828913249,0.05616,93057.0,93056.0,0.09655665]
[1764828913453,0.08616,93057.0,93056.0,0.09655665]
[1764828914254,0.08616,93057.0,93056.0,0.12650665]
[1764828915251,0.08716,93057.0,93056.0,0.12650665]
[1764828915951,0.08716,93057.0,93056.0,0.15604665]
[1764828916145,0.08716,93057.0,93056.0,0.17229665]
[1764828917748,0.08716,93057.0,93056.0,0.07574]
[1764828918755,0.08716,93057.0,93056.0,0.05949]
[1764828921256,0.05616,93052.0,93051.0,0.0702359]
[1764828921556,0.0969058,93052.0,93051.0,0.0702359]
[1764828922452,0.0969058,93052.0,93051.0,0.0712359]
[1764828926760,0.08616,93052.0,93051.0,0.0712359]
[1764828926958,0.03,93052.0,93051.0,0.0712359]
[1764828927363,0.03,93052.0,93051.0,0.2012359]
[1764828927766,0.03,93052.0,93051.0,0.5012359]
[1764828927956,0.05,93062.0,93061.0,0.0702347]
[1764828928264,0.03,93062.0,93061.0,0.5202347]
[1764828928956,0.05616,93077.0,93076.0,0.05949]
[1764828929164,0.05833,93077.0,93076.0,0.05949]
[1764828929762,0.08616,93077.0,93076.0,0.05949]
[1764828931061,0.09316,93077.0,93076.0,0.05949]
[1764828931262,0.037,93077.0,93076.0,0.05949]
[1764828931456,0.037,93077.0,93076.0,0.15604381]
[1764828931860,0.06533,93077.0,93076.0,0.15604381]
[1764828932058,0.037,93077.0,93076.0,0.15604381]
[1764828932662,0.037,93077.0,93076.0,0.29604381]
[1764828932967,0.037,93077.0,93076.0,0.28604381]
[1764828933161,0.06533,93077.0,93076.0,0.15604381]
[1764828933468,0.09316,93077.0,93076.0,0.05949]
[1764828935065,0.09316,93077.0,93076.0,0.15592803]
[1764828937172,0.09316,93077.0,93076.0,0.05949]
[1764828938663,0.037,93077.0,93076.0,0.15592803]
[1764828938864,0.037,93077.0,93076.0,0.05949]
[1764828939364,0.037,93077.0,93076.0,0.19949]
[1764828939775,0.037,93077.0,93076.0,0.53949]
[1764828941668,0.06555,93077.0,93076.0,0.05949]
[1764828942366,0.06555,93077.0,93076.0,0.10949]
[1764828942561,0.037,93077.0,93076.0,0.41949]
[1764828944878,0.037,93077.0,93076.0,0.05949]
[1764828945075,0.037,93077.0,93076.0,0.44949]
[1764828945678,0.007,93077.0,93076.0,0.5569285]
[1764828945877,0.037,93077.0,93076.0,0.5569285]
[1764828946674,0.007,93077.0,93076.0,0.5569285]
[1764828946876,0.037,93077.0,93076.0,1.0551285]
[1764828947274,0.007,93077.0,93076.0,1.0551285]
[1764828948581,0.00026857,93086.0,93085.0,0.07443]
[1764828948782,0.04026857,93086.0,93085.0,0.42443]
[1764828949671,0.04126857,93086.0,93085.0,0.42443]
[1764828949867,0.09767857,93086.0,93085.0,0.135172]
[1764828950272,0.10267857,93086.0,93085.0,0.085172]
[1764828950987,0.04626857,93086.0,93085.0,0.085172]
[1764828951175,0.10267857,93086.0,93085.0,0.085172]
[1764828951482,0.04626857,93086.0,93085.0,0.465172]
[1764828951782,0.10267857,93086.0,93085.0,0.465172]
[1764828952472,0.07481857,93086.0,93085.0,0.465172]
[1764828952777,0.10267857,93086.0,93085.0,0.215172]
[1764828953174,0.07481857,93086.0,93085.0,0.31145733]
[1764828953483,0.07481857,93086.0,93085.0,0.215172]
[1764828953678,0.04626857,93086.0,93085.0,0.505172]
[1764828955082,0.00626857,93086.0,93085.0,0.505172]
[1764828956282,0.00626857,93086.0,93085.0,1.003332]
[1764828956688,0.05,93100.0,93099.0,0.0676103]
[1764828956886,0.10855,93100.0,93099.0,0.1176103]
[1764828957387,0.13641,93100.0,93099.0,0.1176103]
[1764828957782,0.08,93100.0,93099.0,0.1176103]
[1764828957985,0.15245061,93120.0,93099.0,0.1176103]
[1764828957986,0.05667845,93126.0,93125.0,0.0676073]
[1764828958186,0.03026845,93126.0,93125.0,0.7121673]
[1764828958486,0.08667845,93126.0,93125.0,0.0676073]
[1764828958786,0.10313845,93126.0,93125.0,0.0676073]
[1764828958983,0.10313845,93126.0,93125.0,0.7058473]
[1764828959182,0.10313845,93126.0,93125.0,0.5658473]
[1764828959384,0.10313845,93126.0,93125.0,0.05687]
[1764828959591,0.10413845,93126.0,93125.0,0.01463985]
[1764828959783,0.05641,93125.0,93124.0,0.0107374]
[1764828959982,0.08641,93125.0,93124.0,0.0107374]
[1764828960383,0.08641,93125.0,93116.0,0.00016116]
[1764828960384,0.05641,93117.0,93116.0,0.00016116]
[1764828960685,0.09641,93117.0,93116.0,0.00016116]
[1764828960890,0.09641,93117.0,93094.0,0.13538106]
[1764828960891,0.01646,93108.0,93103.0,0.08426844]
[1764828961183,0.05641,93104.0,93103.0,0.05687]
[1764828961388,0.05641,93104.0,93103.0,0.0676099]
[1764828961389,0.08641,93104.0,93103.0,0.0676099]
[1764828962577,0.08641,93104.0,93103.0,0.0746099]
[1764828962985,0.08641,93104.0,93103.0,0.0686099]
[1764828963294,0.08641,93104.0,93103.0,0.0736099]
[1764828963995,0.08641,93104.0,93103.0,0.08833786]
[1764828971094,0.03,93104.0,93103.0,0.08833786]
[1764828971294,0.03,93104.0,93103.0,0.46833786]
[1764828971797,0.08619,93104.0,93103.0,0.08833786]
[1764828972903,0.08619,93104.0,93103.0,0.02072796]
[1764828972904,0.0969298,93104.0,93103.0,0.02072796]
[1764828973100,0.08619,93104.0,93103.0,0.02072796]
[1764828974199,0.08619,93104.0,93103.0,0.01972796]
[1764828974401,0.08619,93104.0,93103.0,0.01772796]
[1764828977102,0.08619,93104.0,93103.0,0.02846786]
[1764828978702,0.00016083,93113.0,93112.0,0.0675788]
[1764828979005,0.05635083,93113.0,93112.0,0.4875788]
[1764828979305,0.02868083,93113.0,93112.0,0.59498614]
[1764828979498,0.00016083,93113.0,93112.0,0.59498614]
[1764828980100,0.05635083,93113.0,93112.0,0.59498614]
[1764828980697,0.05635083,93113.0,93112.0,0.59798614]
[1764828981095,0.08635083,93113.0,93112.0,0.4905788]
[1764828981401,0.08635083,93113.0,93112.0,0.5305788]
[1764828982903,0.08635083,93113.0,93112.0,0.0408788]
[1764828983111,0.08635083,93113.0,93112.0,0.003]
[1764828983409,0.08635083,93113.0,93112.0,0.09935283]
[1764828983704,0.08635083,93113.0,93112.0,0.12649283]
[1764828983905,0.08635083,93113.0,93112.0,0.03014]
[1764828984110,0.08635083,93113.0,93112.0,0.12649283]
[1764828984501,0.08635083,93113.0,93112.0,0.15619283]
[1764828985308,0.08635083,93113.0,93112.0,0.05984]
[1764828986812,0.08635083,93113.0,93112.0,0.003]
[1764828987306,0.05619,93104.0,93103.0,0.1111158]
[1764828987608,0.0107399,93103.0,93100.0,0.09638784]
[1764828987907,0.05619,93101.0,93100.0,0.11112183]
[1764828988109,0.08619,93101.0,93100.0,0.11112183]
[1764828988700,0.08619,93101.0,93100.0,0.12186203]
[1764828988900,0.08619,93101.0,93100.0,0.02747419]
[1764828989913,0.08619,93101.0,93100.0,0.05461419]
[1764828990409,0.08619,93101.0,93100.0,0.08331419]
[1764828992914,0.08619,93101.0,93100.0,0.05361419]
[1764828993715,0.08619,93101.0,93100.0,0.08331419]
[1764828997408,0.03,93101.0,93100.0,0.08331419]
[1764828997609,0.05778,93101.0,93100.0,0.08331419]
[1764828997813,0.0851,93101.0,93100.0,0.08331419]
[1764828998306,0.03,93101.0,93100.0,0.13331419]
[1764828998514,0.03,93101.0,93100.0,0.08331419]
[1764828998808,0.05778,93101.0,93100.0,0.08331419]
[1764828999119,0.0851,93101.0,93100.0,0.08331419]
[1764828999514,0.0851,93101.0,93100.0,0.17971059]
[1764828999818,0.0851,93101.0,93100.0,0.08331419]
[1764829002119,0.0851,93101.0,93100.0,0.17971059]
[1764829004823,0.0851,93101.0,93100.0,0.32971059]
[1764829005023,0.05778,93101.0,93100.0,0.32971059]
[1764829005326,0.05643,93111.0,93110.0,0.0691791]
[1764829005524,0.08643,93111.0,93110.0,0.0691791]
[1764829006525,0.003,93111.0,93110.0,0.1991791]
[1764829006711,0.003,93111.0,93110.0,0.29556427]
[1764829007326,0.002,93111.0,93110.0,0.29556427]
[1764829007511,0.02899575,93126.0,93110.0,0.29556427]
[1764829007512,0.02899575,93126.0,93112.0,0.05844]
[1764829007717,0.02899575,93126.0,93112.0,0.09844]
[1764829008022,0.02899575,93126.0,93112.0,0.05844]
[1764829008729,0.03016083,93113.0,93112.0,0.05844]
[1764829009424,0.00116083,93113.0,93112.0,0.38844]
[1764829010329,0.03116083,93113.0,93112.0,0.38844]
[1764829010531,0.00116083,93113.0,93112.0,0.38844]
[1764829011423,0.03116083,93113.0,93112.0,0.38844]
[1764829011734,0.05759083,93113.0,93112.0,0.38844]
[1764829011922,0.00116083,93113.0,93112.0,0.38844]
[1764829018134,0.03116083,93113.0,93112.0,0.38844]
[1764829018639,0.05887083,93113.0,93112.0,0.38844]
[1764829021342,0.08759083,93113.0,93112.0,0.38844]
[1764829023944,0.08759083,93113.0,93112.0,0.02939]
[1764829024251,0.0582,93111.0,93110.0,0.0658691]
[1764829024553,0.0882,93111.0,93110.0,0.05513]
[1764829024743,0.0582,93106.0,93105.0,0.19051106]
[1764829024949,0.0882,93106.0,93105.0,0.16244106]
[1764829025250,0.0882,93106.0,93105.0,0.05513]
[1764829026140,0.0882,93106.0,93105.0,0.05613]
[1764829026743,0.03,93106.0,93105.0,0.06996]
[1764829026942,0.0882,93106.0,93105.0,0.001]
[1764829027153,0.0866096,93105.0,93104.0,0.0964302]
[1764829027444,0.0689401,93101.0,93100.0,0.01473399]
[1764829027651,0.0689405,93098.0,93097.0,0.0964302]
[1764829027842,0.0989405,93098.0,93097.0,0.1234902]
[1764829028549,0.0882,93098.0,93097.0,0.16547236]
[1764829029146,0.0882,93098.0,93097.0,0.06904216]
[1764829030045,0.0882,93098.0,93097.0,0.07104216]
[1764829031351,0.03,93098.0,93097.0,0.12104216]
[1764829031545,0.03,93098.0,93097.0,0.40204216]
[1764829031746,0.05836083,93113.0,93112.0,0.05513]
[1764829031943,0.08836083,93113.0,93112.0,0.0658688]
[1764829032153,0.08836083,93113.0,93112.0,0.05513]
[1764829032453,0.08836083,93113.0,93100.0,0.15228548]
[1764829032654,0.0582,93101.0,93100.0,0.20741548]
[1764829032849,0.0882,93101.0,93100.0,0.05513]
[1764829033558,0.0882,93101.0,93097.0,0.01491216]
[1764829033559,0.0582,93098.0,93097.0,0.04197216]
[1764829033857,0.0882,93098.0,93097.0,0.04097216]
[1764829034052,0.0882,93098.0,93097.0,0.06904216]
[1764829035257,0.0882,93098.0,93097.0,0.07004216]
[1764829035656,0.0882,93098.0,93097.0,0.01491216]
[1764829036156,0.0882,93098.0,93097.0,0.11139139]
[1764829036841,0.0882,93098.0,93087.0,0.13506842]
[1764829037044,0.0582,93095.0,93087.0,0.13506842]
[1764829037243,0.0882,93095.0,93087.0,0.13506842]
[1764829037443,0.0882,93095.0,93086.0,0.14581022]
[1764829037845,0.0882,93095.0,93094.0,0.01399125]
[1764829038051,0.0882,93095.0,93094.0,0.00016116]
[1764829039147,0.068942,93085.0,93084.0,0.00013425]
[1764829039347,0.098942,93085.0,93084.0,0.00013425]
[1764829039755,0.098942,93085.0,93084.0,0.01354938]
[1764829039952,0.068943,93076.0,93075.0,0.00016116]
[1764829040163,0.098943,93076.0,93075.0,0.00016116]
[1764829040351,0.098943,93076.0,93075.0,0.01365567]
[1764829040551,0.098943,93076.0,93075.0,0.00016116]
[1764829041053,0.098943,93076.0,93061.0,0.0107447]
[1764829041054,0.08831773,93076.0,93061.0,0.0107447]
[1764829041260,0.0582,93062.0,93061.0,0.0658747]
[1764829041458,0.0882,93062.0,93061.0,0.0658747]
[1764829042347,0.0882,93062.0,93061.0,0.02064921]
[1764829043252,0.0882,93062.0,93061.0,0.02264921]
[1764829050751,0.0882,93062.0,93052.0,0.00016116]
[1764829050752,0.0689456,93053.0,93052.0,0.00016116]
[1764829050957,0.0989456,93053.0,93052.0,0.00016116]
[1764829051361,0.0689463,93047.0,93046.0,0.00026869]
[1764829051559,0.09903089,93047.0,93046.0,0.00026869]
[1764829051860,0.09903089,93047.0,93046.0,0.0138786]
[1764829053560,0.10403089,93047.0,93046.0,0.0138786]
[1764829061365,0.09328459,93047.0,93046.0,0.0138786]
[1764829061568,0.09328459,93047.0,93046.0,0.0409386]
[1764829062768,0.09328459,93047.0,93046.0,0.0697786]
[1764829064166,0.09328459,93047.0,93046.0,0.3697786]
[1764829064167,0.09228459,93047.0,93046.0,0.3697786]
[1764829064372,0.03408459,93047.0,93046.0,0.3697786]
[1764829064758,0.03308459,93047.0,93046.0,0.3697786]
[1764829065666,0.03208459,93047.0,93046.0,0.3707786]
[1764829066673,0.05961459,93047.0,93046.0,0.3707786]
[1764829066866,0.03208459,93047.0,93046.0,0.3707786]
[1764829068665,0.00557895,93047.0,93046.0,0.3707786]
[1764829068873,0.03,93047.0,93046.0,0.42235174]
[1764829069071,0.03,93047.0,93046.0,0.57441555]
[1764829069268,0.07727265,93047.0,93046.0,0.3708586]
[1764829069570,0.07727265,93047.0,93046.0,0.46727554]
[1764829069765,0.07733963,93047.0,93046.0,0.46727554]
[1764829069966,0.07733963,93047.0,93046.0,0.3708586]
[1764829070169,0.07733963,93047.0,93046.0,0.46727554]
[1764829070868,0.07733963,93047.0,93046.0,0.0708586]
[1764829072471,0.07733963,93047.0,93046.0,0.16727554]
[1764829072670,0.07733963,93047.0,93046.0,0.16735172]
[1764829072865,0.07733963,93047.0,93046.0,0.32735172]
[1764829073061,0.07733963,93047.0,93046.0,0.0708586]
[1764829073878,0.07733963,93047.0,93046.0,0.4008586]
[1764829074876,0.07733963,93047.0,93046.0,0.0708586]
[1764829075576,0.07733963,93047.0,93046.0,0.2208586]
[1764829077777,0.04842963,93047.0,93046.0,0.2208586]
[1764829077973,0.01875963,93047.0,93046.0,0.2208586]
[1764829078368,6.698e-05,93047.0,93046.0,0.4808586]
[1764829078771,0.05874116,93071.0,93070.0,0.05598]
[1764829078972,0.08874116,93071.0,93070.0,0.05598]
[1764829079973,0.09574116,93071.0,93070.0,0.05598]
[1764829080280,0.09674116,93071.0,93070.0,0.05598]
[1764829081482,0.06783116,93071.0,93070.0,0.05598]
[1764829082384,0.06083116,93071.0,93070.0,0.05598]
[1764829082573,0.06283116,93071.0,93070.0,0.05598]
[1764829083286,0.03316116,93071.0,93070.0,0.20598]
[1764829083478,0.03316116,93071.0,93070.0,0.47598]
[1764829083479,0.00316116,93071.0,93070.0,0.47598]
[1764829083777,0.00190566,93071.0,93070.0,0.57248563]
[1764829083977,0.03190566,93071.0,93070.0,0.47598]
[1764829084283,0.0675307,93097.0,93096.0,0.05807]